[Event "Late-Titled-Tuesday-Blitz-October-10-2023"]
[Site "Chess.com"]
[Date "2023.10.10"]
[Round "8"]
[White "Vamostodorecto"]
[Black "Horokoskii"]
[Result "1-0"]
[WhiteElo "2433"]
[BlackElo "2120"]
[TimeControl "180+1"]
[EndTime "15:24:05 PDT"]
[Termination "Vamostodorecto won on time"]

1. d4 {[%clk 0:02:52.1]} 1... Nf6 {[%clk 0:02:58.3]} 2. c4 {[%clk 0:02:52.6]}
2... c5 {[%clk 0:02:58.5]} 3. d5 {[%clk 0:02:51.1]} 3... e6 {[%clk 0:02:58.8]}
4. Nc3 {[%clk 0:02:51.4]} 4... exd5 {[%clk 0:02:58.9]} 5. cxd5 {[%clk
0:02:52.2]} 5... d6 {[%clk 0:02:59.5]} 6. Nf3 {[%clk 0:02:48.9]} 6... g6 {[%clk
0:02:59.5]} 7. Nd2 {[%clk 0:02:48.1]} 7... Bg7 {[%clk 0:02:58.8]} 8. e4 {[%clk
0:02:44.2]} 8... O-O {[%clk 0:02:57.6]} 9. Nc4 {[%clk 0:02:44.8]} 9... a6 {[%clk
0:02:56.5]} 10. a4 {[%clk 0:02:43.5]} 10... Qe7 {[%clk 0:02:56.7]} 11. Bd3
{[%clk 0:02:41.2]} 11... Nbd7 {[%clk 0:02:55.7]} 12. O-O {[%clk 0:02:39.5]}
12... Ne5 {[%clk 0:02:53.4]} 13. Nxe5 {[%clk 0:02:33.8]} 13... Qxe5 {[%clk
0:02:51.7]} 14. f4 {[%clk 0:02:29.3]} 14... Qd4+ {[%clk 0:02:50.2]} 15. Kh1
{[%clk 0:02:29.9]} 15... Bg4 {[%clk 0:02:48.1]} 16. Qc2 {[%clk 0:02:28.8]} 16...
Rfe8 {[%clk 0:02:38.1]} 17. h3 {[%clk 0:02:24.6]} 17... Bd7 {[%clk 0:02:26.5]}
18. Ne2 {[%clk 0:02:19.4]} 18... Qb4 {[%clk 0:02:21.1]} 19. Bd2 {[%clk
0:02:19.9]} 19... Qb6 {[%clk 0:02:21]} 20. a5 {[%clk 0:02:15.7]} 20... Qc7
{[%clk 0:02:20.4]} 21. Bc3 {[%clk 0:02:15.6]} 21... b5 {[%clk 0:02:10.3]} 22.
axb6 {[%clk 0:02:13.9]} 22... Qxb6 {[%clk 0:02:10.4]} 23. Bc4 {[%clk 0:01:56]}
23... Nxe4 {[%clk 0:02:01.7]} 24. Bxg7 {[%clk 0:01:50.7]} 24... Kxg7 {[%clk
0:02:01.5]} 25. f5 {[%clk 0:01:47.1]} 25... Bxf5 {[%clk 0:01:57]} 26. Rxf5
{[%clk 0:01:45.1]} 26... gxf5 {[%clk 0:01:57.9]} 27. Rf1 {[%clk 0:01:33]} 27...
Rab8 {[%clk 0:01:52.2]} 28. b3 {[%clk 0:01:30.8]} 28... Re5 {[%clk 0:01:46.5]}
29. Kh2 {[%clk 0:01:11]} 29... Qd8 {[%clk 0:01:39.2]} 30. Nf4 {[%clk 0:01:07.4]}
30... Qg5 {[%clk 0:01:30.4]} 31. Rf3 {[%clk 0:01:08]} 31... Kh8 {[%clk
0:01:25.7]} 32. Bxa6 {[%clk 0:01:04.9]} 32... Rg8 {[%clk 0:01:24]} 33. Bc4
{[%clk 0:00:59.5]} 33... Ng3 {[%clk 0:01:19.3]} 34. Qf2 {[%clk 0:00:50.2]} 34...
Ne4 {[%clk 0:01:14.4]} 35. Qb2 {[%clk 0:00:49.5]} 35... Ng3 {[%clk 0:01:04.3]}
36. Nd3 {[%clk 0:00:41.3]} 36... f4 {[%clk 0:01:01.5]} 37. Rxf4 {[%clk
0:00:21.3]} 37... f6 {[%clk 0:00:47.4]} 38. Rg4 {[%clk 0:00:19.6]} 38... Nf1+
{[%clk 0:00:41.9]} 39. Kg1 {[%clk 0:00:18]} 39... Qe3+ {[%clk 0:00:20.1]} 40.
Kh1 {[%clk 0:00:18.1]} 40... Ng3+ {[%clk 0:00:18.5]} 41. Kh2 {[%clk 0:00:14.1]}
41... Rxg4 {[%clk 0:00:18.3]} 42. Nxe5 {[%clk 0:00:10.7]} 42... Nf1+ {[%clk
0:00:17.9]} 43. Kh1 {[%clk 0:00:10.4]} 43... Qxe5 {[%clk 0:00:15.8]} 44. Qxe5
{[%clk 0:00:09.4]} 44... fxe5 {[%clk 0:00:12.7]} 45. hxg4 {[%clk 0:00:10.3]}
45... Ne3 {[%clk 0:00:12.6]} 46. Bd3 {[%clk 0:00:07.9]} 46... Nxd5 {[%clk
0:00:11.3]} 47. g3 {[%clk 0:00:06.6]} 47... Kg7 {[%clk 0:00:11.1]} 48. Kg2
{[%clk 0:00:06.3]} 48... Kf6 {[%clk 0:00:11.5]} 49. Kf3 {[%clk 0:00:06.4]} 49...
Nb4 {[%clk 0:00:11.7]} 50. Bxh7 {[%clk 0:00:06.3]} 50... Nc6 {[%clk 0:00:10.9]}
51. Ke4 {[%clk 0:00:05.5]} 51... Nd4 {[%clk 0:00:10.9]} 52. Kd5 {[%clk
0:00:05.2]} 52... Ke7 {[%clk 0:00:11.2]} 53. g5 {[%clk 0:00:04.7]} 53... Nxb3
{[%clk 0:00:10.7]} 54. g6 {[%clk 0:00:04.6]} 54... Nd4 {[%clk 0:00:09.5]} 55. g7
{[%clk 0:00:02.9]} 55... Ne6 {[%clk 0:00:01.6]} 56. g8=Q {[%clk 0:00:03.8]}
56... Nc7+ {[%clk 0:00:01.9]} 57. Ke4 {[%clk 0:00:03.1]} 57... d5+ {[%clk
0:00:02.1]} 58. Kxe5 {[%clk 0:00:02.6]} 1-0

[Event "Late-Titled-Tuesday-Blitz-October-10-2023"]
[Site "Chess.com"]
[Date "2023.10.10"]
[Round "8"]
[White "Alex_Sahakyan2006"]
[Black "jcibarra"]
[Result "1-0"]
[WhiteElo "2760"]
[BlackElo "2880"]
[TimeControl "180+1"]
[EndTime "15:24:17 PDT"]
[Termination "Alex_Sahakyan2006 won on time"]

1. e4 {[%clk 0:03:00.9]} 1... c5 {[%clk 0:02:59.8]} 2. Nc3 {[%clk 0:02:59.9]}
2... a6 {[%clk 0:02:59.9]} 3. g3 {[%clk 0:02:59.6]} 3... b5 {[%clk 0:03:00.3]}
4. Bg2 {[%clk 0:02:59.5]} 4... Bb7 {[%clk 0:03:01.1]} 5. d3 {[%clk 0:02:59.8]}
5... e6 {[%clk 0:03:01.6]} 6. Nh3 {[%clk 0:02:59.5]} 6... b4 {[%clk 0:03:01]} 7.
Ne2 {[%clk 0:02:58.5]} 7... d5 {[%clk 0:03:01.6]} 8. O-O {[%clk 0:02:56.4]} 8...
dxe4 {[%clk 0:03:01.9]} 9. dxe4 {[%clk 0:02:55.1]} 9... Qxd1 {[%clk 0:03:02.5]}
10. Rxd1 {[%clk 0:02:55.6]} 10... Nf6 {[%clk 0:03:02.9]} 11. e5 {[%clk 0:02:54]}
11... Bxg2 {[%clk 0:03:00]} 12. Kxg2 {[%clk 0:02:54.9]} 12... Nfd7 {[%clk
0:02:58.4]} 13. f4 {[%clk 0:02:51.9]} 13... Nc6 {[%clk 0:02:58.8]} 14. Nf2
{[%clk 0:02:51]} 14... Nb6 {[%clk 0:02:56.2]} 15. Ne4 {[%clk 0:02:46.1]} 15...
Nd5 {[%clk 0:02:54.8]} 16. c4 {[%clk 0:02:45.7]} 16... bxc3 {[%clk 0:02:53.4]}
17. N2xc3 {[%clk 0:02:45.4]} 17... Rd8 {[%clk 0:02:44.4]} 18. b3 {[%clk
0:01:55.7]} 18... Be7 {[%clk 0:02:37.6]} 19. Na4 {[%clk 0:01:54.1]} 19... Nd4
{[%clk 0:02:27.9]} 20. Kf2 {[%clk 0:01:36.6]} 20... Rc8 {[%clk 0:02:22.6]} 21.
Bb2 {[%clk 0:01:25.7]} 21... f5 {[%clk 0:01:27.6]} 22. exf6 {[%clk 0:01:19.5]}
22... gxf6 {[%clk 0:01:27.5]} 23. Rac1 {[%clk 0:01:18.2]} 23... Nf5 {[%clk
0:01:05]} 24. Naxc5 {[%clk 0:01:13.4]} 24... Rc6 {[%clk 0:01:00]} 25. Nxe6
{[%clk 0:01:01.4]} 25... Nde3 {[%clk 0:00:49.9]} 26. Rxc6 {[%clk 0:00:20.6]}
26... Nxd1+ {[%clk 0:00:49.9]} 27. Ke2 {[%clk 0:00:20.9]} 27... Kd7 {[%clk
0:00:43]} 28. Rc7+ {[%clk 0:00:21.1]} 28... Kxe6 {[%clk 0:00:43.2]} 29. Kxd1
{[%clk 0:00:20.9]} 29... h5 {[%clk 0:00:35.5]} 30. Ke2 {[%clk 0:00:20.7]} 30...
a5 {[%clk 0:00:29.9]} 31. Ra7 {[%clk 0:00:14.7]} 31... Re8 {[%clk 0:00:20.2]}
32. Rxa5 {[%clk 0:00:13.3]} 32... Bb4 {[%clk 0:00:20.7]} 33. Rb5 {[%clk
0:00:10.2]} 33... Be7 {[%clk 0:00:18.4]} 34. Kf3 {[%clk 0:00:10.4]} 34... Rd8
{[%clk 0:00:16.9]} 35. Rb6+ {[%clk 0:00:09.4]} 35... Kf7 {[%clk 0:00:16.9]} 36.
Nxf6 {[%clk 0:00:09.1]} 36... Rd2 {[%clk 0:00:15.4]} 37. Be5 {[%clk 0:00:08.1]}
37... Rxa2 {[%clk 0:00:13.7]} 38. Nxh5 {[%clk 0:00:07.6]} 38... Rxh2 {[%clk
0:00:12.5]} 39. g4 {[%clk 0:00:08.1]} 39... Nh4+ {[%clk 0:00:10]} 40. Ke4 {[%clk
0:00:06.9]} 40... Re2+ {[%clk 0:00:07.6]} 41. Kd3 {[%clk 0:00:06.8]} 41... Rg2
{[%clk 0:00:07.9]} 42. g5 {[%clk 0:00:07.3]} 42... Nf3 {[%clk 0:00:05.9]} 43.
Bf6 {[%clk 0:00:05.2]} 43... Bc5 {[%clk 0:00:04.3]} 44. Rc6 {[%clk 0:00:04.9]}
44... Bg1 {[%clk 0:00:03.3]} 45. Bc3 {[%clk 0:00:04.7]} 45... Rg4 {[%clk
0:00:02.6]} 46. Ke2 {[%clk 0:00:02.9]} 46... Nh2 {[%clk 0:00:01.9]} 47. Rc7+
{[%clk 0:00:01.4]} 47... Ke6 {[%clk 0:00:02]} 48. Rc6+ {[%clk 0:00:02.3]} 48...
Kd5 {[%clk 0:00:02.6]} 49. Rf6 {[%clk 0:00:02.9]} 49... Ke4 {[%clk 0:00:02.7]}
50. Re6+ {[%clk 0:00:03.3]} 50... Kd5 {[%clk 0:00:02.8]} 51. Re5+ {[%clk
0:00:04]} 51... Kd6 {[%clk 0:00:03]} 52. b4 {[%clk 0:00:04.4]} 52... Rg2+ {[%clk
0:00:02.9]} 53. Kd3 {[%clk 0:00:04.2]} 53... Nf3 {[%clk 0:00:03.3]} 54. Rf5
{[%clk 0:00:04]} 54... Rh2 {[%clk 0:00:01.9]} 55. Nf6 {[%clk 0:00:04.4]} 55...
Rh3 {[%clk 0:00:02.2]} 56. Ne4+ {[%clk 0:00:04.8]} 56... Ke6 {[%clk 0:00:02.5]}
57. Rf6+ {[%clk 0:00:05.3]} 57... Ke7 {[%clk 0:00:03.3]} 58. Kc4 {[%clk
0:00:06]} 58... Rh4 {[%clk 0:00:02.9]} 59. Be5 {[%clk 0:00:06.1]} 59... Rh2
{[%clk 0:00:02.8]} 60. Kd5 {[%clk 0:00:06]} 60... Re2 {[%clk 0:00:02.5]} 61.
Bd6+ {[%clk 0:00:06.6]} 61... Ke8 {[%clk 0:00:02.4]} 62. Rf8+ {[%clk 0:00:06.8]}
62... Kd7 {[%clk 0:00:02.9]} 63. Nc5+ {[%clk 0:00:07.7]} 63... Bxc5 {[%clk
0:00:01.8]} 64. Bxc5 {[%clk 0:00:08.6]} 64... Rd2+ {[%clk 0:00:01.6]} 65. Ke4
{[%clk 0:00:09.3]} 65... Nh4 {[%clk 0:00:01.5]} 66. f5 {[%clk 0:00:09.1]} 1-0

[Event "Late-Titled-Tuesday-Blitz-October-10-2023"]
[Site "Chess.com"]
[Date "2023.10.10"]
[Round "8"]
[White "Freefresh"]
[Black "kreonx"]
[Result "1-0"]
[WhiteElo "2729"]
[BlackElo "2490"]
[TimeControl "180+1"]
[EndTime "15:24:17 PDT"]
[Termination "Freefresh won on time"]

1. f4 {[%clk 0:02:33.3]} 1... d5 {[%clk 0:02:57.4]} 2. Nf3 {[%clk 0:02:27.5]}
2... c5 {[%clk 0:02:57.8]} 3. e3 {[%clk 0:02:25.5]} 3... Nc6 {[%clk 0:02:58.3]}
4. b3 {[%clk 0:02:23.7]} 4... f6 {[%clk 0:02:54.9]} 5. Bb5 {[%clk 0:02:22.8]}
5... Bd7 {[%clk 0:02:52.3]} 6. Bb2 {[%clk 0:02:18.9]} 6... a6 {[%clk 0:02:51.4]}
7. Bxc6 {[%clk 0:02:17.2]} 7... Bxc6 {[%clk 0:02:52.3]} 8. d3 {[%clk 0:02:14.2]}
8... e6 {[%clk 0:02:52.7]} 9. Nbd2 {[%clk 0:02:14.5]} 9... Bd6 {[%clk
0:02:52.1]} 10. Qe2 {[%clk 0:02:14.5]} 10... Ne7 {[%clk 0:02:52.1]} 11. g4
{[%clk 0:02:10.9]} 11... Qc7 {[%clk 0:02:31.3]} 12. g5 {[%clk 0:02:09.3]} 12...
e5 {[%clk 0:02:31.8]} 13. gxf6 {[%clk 0:01:59.9]} 13... gxf6 {[%clk 0:02:32.7]}
14. fxe5 {[%clk 0:02:00]} 14... fxe5 {[%clk 0:02:33.2]} 15. e4 {[%clk
0:01:58.5]} 15... d4 {[%clk 0:02:23]} 16. Nc4 {[%clk 0:01:56]} 16... b5 {[%clk
0:02:14.5]} 17. Nxd6+ {[%clk 0:01:51.5]} 17... Qxd6 {[%clk 0:02:15.4]} 18. Bc1
{[%clk 0:01:46]} 18... O-O-O {[%clk 0:02:13.7]} 19. Bg5 {[%clk 0:01:39.9]} 19...
Rdf8 {[%clk 0:02:12.6]} 20. Bxe7 {[%clk 0:01:40]} 20... Qxe7 {[%clk 0:02:12.3]}
21. O-O-O {[%clk 0:01:40.6]} 21... c4 {[%clk 0:02:05.6]} 22. dxc4 {[%clk
0:01:37.5]} 22... Rf4 {[%clk 0:01:37.4]} 23. Nd2 {[%clk 0:01:24.6]} 23... Kb7
{[%clk 0:01:24.9]} 24. Kb2 {[%clk 0:01:22.8]} 24... bxc4 {[%clk 0:01:21.5]} 25.
Nxc4 {[%clk 0:01:12.4]} 25... Bxe4 {[%clk 0:01:13.5]} 26. Rhe1 {[%clk
0:01:11.4]} 26... Re8 {[%clk 0:01:05.7]} 27. Qd2 {[%clk 0:01:07.9]} 27... Qc5
{[%clk 0:00:57.9]} 28. Rxe4 {[%clk 0:01:00.4]} 28... Rxe4 {[%clk 0:00:51.1]} 29.
Qg2 {[%clk 0:01:00.1]} 29... Qd5 {[%clk 0:00:46.4]} 30. Qxe4 {[%clk 0:00:55.7]}
30... Qxe4 {[%clk 0:00:45.8]} 31. Nd6+ {[%clk 0:00:56.4]} 31... Kc6 {[%clk
0:00:46.2]} 32. Nxe4 {[%clk 0:00:57.3]} 32... Rf8 {[%clk 0:00:44.4]} 33. Re1
{[%clk 0:00:55.3]} 33... Kd5 {[%clk 0:00:42.2]} 34. Re2 {[%clk 0:00:46.9]} 34...
Rf4 {[%clk 0:00:42]} 35. c4+ {[%clk 0:00:46.1]} 35... dxc3+ {[%clk 0:00:34.2]}
36. Nxc3+ {[%clk 0:00:44.3]} 36... Kd4 {[%clk 0:00:34.4]} 37. Rd2+ {[%clk
0:00:43]} 37... Ke3 {[%clk 0:00:34.5]} 38. Rc2 {[%clk 0:00:38.3]} 38... Rh4
{[%clk 0:00:32.3]} 39. a3 {[%clk 0:00:38.1]} 39... Kd3 {[%clk 0:00:30.1]} 40. b4
{[%clk 0:00:36.4]} 40... e4 {[%clk 0:00:29.3]} 41. Nd5 {[%clk 0:00:34.7]} 41...
e3 {[%clk 0:00:22.3]} 42. Rc3+ {[%clk 0:00:34.9]} 42... Kd4 {[%clk 0:00:22.7]}
43. Nxe3 {[%clk 0:00:35.2]} 43... Rxh2+ {[%clk 0:00:22.2]} 44. Nc2+ {[%clk
0:00:35.9]} 44... Kd5 {[%clk 0:00:22.3]} 45. a4 {[%clk 0:00:36.5]} 45... h5
{[%clk 0:00:20.5]} 46. Kb3 {[%clk 0:00:37.2]} 46... h4 {[%clk 0:00:20.8]} 47.
Ne3+ {[%clk 0:00:37.7]} 47... Ke4 {[%clk 0:00:17.1]} 48. Ng4 {[%clk 0:00:37.8]}
48... Rg2 {[%clk 0:00:15.1]} 49. Nf6+ {[%clk 0:00:36.7]} 49... Kf5 {[%clk
0:00:15.6]} 50. Nd5 {[%clk 0:00:31.9]} 50... Ke4 {[%clk 0:00:07.7]} 51. Nc7
{[%clk 0:00:30.5]} 51... Rg3 {[%clk 0:00:07.1]} 52. Nxa6 {[%clk 0:00:22.7]}
52... Rxc3+ {[%clk 0:00:05.7]} 53. Kxc3 {[%clk 0:00:23.6]} 53... h3 {[%clk
0:00:05.8]} 54. Nc5+ {[%clk 0:00:24.5]} 54... Ke3 {[%clk 0:00:04.2]} 55. a5
{[%clk 0:00:23.5]} 55... h2 {[%clk 0:00:04.5]} 56. a6 {[%clk 0:00:24.4]} 56...
h1=Q {[%clk 0:00:04.9]} 57. Kc4 {[%clk 0:00:24.7]} 57... Qc1+ {[%clk 0:00:01.1]}
58. Kb5 {[%clk 0:00:24.8]} 58... Kd4 {[%clk 0:00:01.6]} 59. a7 {[%clk
0:00:23.7]} 59... Qc4+ {[%clk 0:00:02.2]} 60. Ka5 {[%clk 0:00:23.3]} 60... Qa2+
{[%clk 0:00:02.2]} 61. Kb6 {[%clk 0:00:24]} 61... Qa3 {[%clk 0:00:02.3]} 62. Na6
{[%clk 0:00:23.4]} 62... Qa4 {[%clk 0:00:02.1]} 63. a8=Q {[%clk 0:00:23.2]}
63... Qd7 {[%clk 0:00:02.7]} 64. Qc6 {[%clk 0:00:21.1]} 64... Qd8+ {[%clk
0:00:02.6]} 65. Qc7 {[%clk 0:00:20.5]} 65... Qf6+ {[%clk 0:00:01.8]} 66. Ka5
{[%clk 0:00:17.1]} 66... Qf1 {[%clk 0:00:01.8]} 67. b5 {[%clk 0:00:17.1]} 1-0

[Event "Late-Titled-Tuesday-Blitz-October-10-2023"]
[Site "Chess.com"]
[Date "2023.10.10"]
[Round "8"]
[White "pinguino120"]
[Black "falzehope0"]
[Result "1-0"]
[WhiteElo "2239"]
[BlackElo "2337"]
[TimeControl "180+1"]
[EndTime "15:24:17 PDT"]
[Termination "pinguino120 won by resignation"]

1. e4 {[%clk 0:03:00.9]} 1... d5 {[%clk 0:02:53.9]} 2. exd5 {[%clk 0:02:58]}
2... Nf6 {[%clk 0:02:51.6]} 3. Bb5+ {[%clk 0:02:43.6]} 3... Nbd7 {[%clk
0:02:51]} 4. c4 {[%clk 0:02:38]} 4... g6 {[%clk 0:02:43.3]} 5. d4 {[%clk
0:02:37.8]} 5... Bg7 {[%clk 0:02:42.9]} 6. Nf3 {[%clk 0:02:38.4]} 6... O-O
{[%clk 0:02:42.5]} 7. O-O {[%clk 0:02:38.5]} 7... Nb6 {[%clk 0:02:40.5]} 8. Qe2
{[%clk 0:02:33.7]} 8... a6 {[%clk 0:02:38]} 9. c5 {[%clk 0:02:33.3]} 9... Nbxd5
{[%clk 0:02:35.4]} 10. Bc4 {[%clk 0:02:32]} 10... b5 {[%clk 0:02:33.4]} 11. Bb3
{[%clk 0:02:29.6]} 11... a5 {[%clk 0:02:26.8]} 12. a4 {[%clk 0:02:13.8]} 12...
b4 {[%clk 0:02:20.4]} 13. Bc4 {[%clk 0:02:11.1]} 13... Bb7 {[%clk 0:02:19.1]}
14. Ne5 {[%clk 0:02:10.4]} 14... Bc8 {[%clk 0:01:57.8]} 15. Bg5 {[%clk
0:01:55.1]} 15... Be6 {[%clk 0:01:50.7]} 16. Nd2 {[%clk 0:01:46.1]} 16... h6
{[%clk 0:01:49.8]} 17. Be3 {[%clk 0:01:38.2]} 17... Ng4 {[%clk 0:01:44.6]} 18.
Ndf3 {[%clk 0:01:28.7]} 18... Ngf6 {[%clk 0:01:28.9]} 19. Rad1 {[%clk 0:01:26]}
19... Qe8 {[%clk 0:01:27.8]} 20. Bb5 {[%clk 0:01:24.5]} 20... Qc8 {[%clk
0:01:21.6]} 21. Nc6 {[%clk 0:01:11.1]} 21... Bg4 {[%clk 0:01:17.3]} 22. h3
{[%clk 0:01:08]} 22... Bh5 {[%clk 0:01:12]} 23. Bc1 {[%clk 0:00:45]} 23... g5
{[%clk 0:01:09.1]} 24. Rfe1 {[%clk 0:00:33.8]} 24... g4 {[%clk 0:01:07.3]} 25.
hxg4 {[%clk 0:00:33.3]} 25... Qxg4 {[%clk 0:01:05.2]} 26. Nxe7+ {[%clk
0:00:29.1]} 26... Kh8 {[%clk 0:00:58.4]} 27. Nxd5 {[%clk 0:00:28.4]} 27... Nxd5
{[%clk 0:00:59.3]} 28. Bc6 {[%clk 0:00:28.3]} 28... Rad8 {[%clk 0:00:56.7]} 29.
Bxd5 {[%clk 0:00:19.7]} 29... Rxd5 {[%clk 0:00:57.6]} 30. Qe4 {[%clk 0:00:19.8]}
30... Qd7 {[%clk 0:00:47.7]} 31. Qe7 {[%clk 0:00:18.5]} 31... Qxa4 {[%clk
0:00:30.3]} 32. Qxc7 {[%clk 0:00:18.1]} 32... Bxf3 {[%clk 0:00:26.5]} 33. gxf3
{[%clk 0:00:18.4]} 33... Qb3 {[%clk 0:00:16]} 34. Qg3 {[%clk 0:00:16.8]} 34...
Rf5 {[%clk 0:00:15.3]} 35. c6 {[%clk 0:00:16.4]} 35... Rg8 {[%clk 0:00:14.8]}
36. c7 {[%clk 0:00:15.9]} 36... Qc4 {[%clk 0:00:11.9]} 37. Bf4 {[%clk
0:00:15.1]} 37... Bf6 {[%clk 0:00:10.1]} 38. Qxg8+ {[%clk 0:00:13.9]} 38... Kxg8
{[%clk 0:00:10.2]} 39. Re8+ {[%clk 0:00:14]} 39... Kg7 {[%clk 0:00:08.4]} 40.
c8=Q {[%clk 0:00:14]} 40... Qxc8 {[%clk 0:00:07.1]} 41. Rxc8 {[%clk 0:00:14.9]}
41... Rxf4 {[%clk 0:00:07.3]} 42. d5 {[%clk 0:00:15.5]} 42... Be7 {[%clk
0:00:06.3]} 43. d6 {[%clk 0:00:15.8]} 43... Bh4 {[%clk 0:00:06.3]} 44. d7 {[%clk
0:00:15.8]} 44... Rxf3 {[%clk 0:00:05.9]} 45. d8=Q {[%clk 0:00:16.1]} 45... Bxd8
{[%clk 0:00:04.7]} 46. Rdxd8 {[%clk 0:00:16.4]} 46... a4 {[%clk 0:00:05.6]} 47.
Ra8 {[%clk 0:00:16.3]} 47... a3 {[%clk 0:00:04.9]} 48. bxa3 {[%clk 0:00:16.7]}
48... bxa3 {[%clk 0:00:05.8]} 49. Rd2 {[%clk 0:00:16.6]} 49... Rb3 {[%clk
0:00:05.5]} 50. Ra2 {[%clk 0:00:16.7]} 50... h5 {[%clk 0:00:05.6]} 51. R2xa3
{[%clk 0:00:16.9]} 51... Rb4 {[%clk 0:00:05.2]} 52. Rg3+ {[%clk 0:00:16.8]}
52... Kf6 {[%clk 0:00:04.9]} 53. Ra5 {[%clk 0:00:17.2]} 53... Rh4 {[%clk
0:00:03.5]} 54. Rf3+ {[%clk 0:00:17.1]} 54... Kg6 {[%clk 0:00:02.7]} 55. Kg2
{[%clk 0:00:17.5]} 55... Rg4+ {[%clk 0:00:02.7]} 56. Rg3 {[%clk 0:00:17.6]}
56... f5 {[%clk 0:00:02]} 57. Rxg4+ {[%clk 0:00:17.8]} 57... hxg4 {[%clk
0:00:01.2]} 58. Kg3 {[%clk 0:00:17.8]} 58... Kg5 {[%clk 0:00:02.1]} 59. f4+
{[%clk 0:00:18.2]} 59... Kg6 {[%clk 0:00:02.7]} 60. Ra6+ {[%clk 0:00:17.8]}
60... Kh5 {[%clk 0:00:03.5]} 61. Ra5 {[%clk 0:00:15]} 61... Kg6 {[%clk
0:00:03.3]} 62. Kh4 {[%clk 0:00:15.6]} 62... Kf6 {[%clk 0:00:03.8]} 63. Ra6+
{[%clk 0:00:15.5]} 63... Kg7 {[%clk 0:00:04.1]} 64. Kg5 {[%clk 0:00:16]} 64...
g3 {[%clk 0:00:04.7]} 65. Kxf5 {[%clk 0:00:16.6]} 65... g2 {[%clk 0:00:05]} 66.
Rg6+ {[%clk 0:00:17.2]} 66... Kf7 {[%clk 0:00:05.2]} 67. Rxg2 {[%clk 0:00:18.1]}
67... Kf8 {[%clk 0:00:05.4]} 68. Rg6 {[%clk 0:00:18.2]} 68... Kf7 {[%clk
0:00:06.1]} 69. Ra6 {[%clk 0:00:18.8]} 69... Kf8 {[%clk 0:00:06.6]} 70. Kf6
{[%clk 0:00:19.1]} 70... Ke8 {[%clk 0:00:06.7]} 71. Ra7 {[%clk 0:00:19.3]} 71...
Kd8 {[%clk 0:00:07.2]} 72. Ke6 {[%clk 0:00:19.7]} 72... Kc8 {[%clk 0:00:07.7]}
73. Rh7 {[%clk 0:00:19.7]} 73... Kd8 {[%clk 0:00:08.2]} 74. Rg7 {[%clk
0:00:19.4]} 74... Kc8 {[%clk 0:00:08.7]} 75. Kd6 {[%clk 0:00:19.9]} 75... Kb8
{[%clk 0:00:08.6]} 76. Kc6 {[%clk 0:00:20.4]} 76... Ka8 {[%clk 0:00:08.2]} 77.
Kb6 {[%clk 0:00:20.9]} 1-0